bitfinex/quotes_SOLUSD_20241028
["timestamp","ask_amount","ask_price","bid_price","bid_amount"]
[1730112796062,30.0,177.98,177.87,0.1]
[1730112796063,46.53672421,177.98,177.85,0.2]
[1730112796404,46.53672421,177.98,177.93,10.91802421]
[1730112800454,46.53672421,177.98,177.85,24.127864]
[1730112800653,46.53672421,177.98,177.93,10.91802421]
[1730112803466,10.91802421,177.97,177.92,10.91802421]
[1730112803675,30.0,177.95,177.93,10.91802421]
[1730112804665,35.6197,177.95,177.92,10.91802421]
[1730112804866,46.53772421,177.95,177.9,10.91802421]
[1730112805377,10.91802421,177.94,177.89,10.91802421]
[1730112805672,30.0,177.93,177.89,10.91802421]
[1730112805874,10.91802421,177.92,177.81,6.83428382]
[1730112806081,10.91802421,177.92,177.86,10.91802421]
[1730112806757,35.6211,177.9,177.86,10.91802421]
[1730112807463,46.53912421,177.9,177.85,10.91802421]
[1730112809575,35.6211,177.9,177.86,10.91802421]
[1730112813185,35.6211,177.9,177.85,10.91802421]
[1730112814059,5.6211,177.9,177.85,10.91802421]
[1730112814966,5.6211,177.9,177.81,23.776884]
[1730112815175,5.6211,177.9,177.85,10.91802421]
[1730112816586,5.6211,177.9,177.86,10.91802421]
[1730112816976,30.0,177.88,177.86,10.91802421]
[1730112817483,30.0,177.88,177.81,23.776884]
[1730112817677,30.0,177.88,177.85,10.91802421]
[1730112818470,30.0,177.88,177.86,10.91802421]
[1730112819061,30.0,177.88,177.85,10.91802421]
[1730112819467,30.0,177.88,177.8,0.6076]
[1730112819468,35.6218,177.88,177.8,0.6076]
[1730112819666,35.6218,177.88,177.84,10.91802421]
[1730112821490,6.3499,177.87,177.76,6.48097]
[1730112821687,10.91802421,177.86,177.76,6.48097]
[1730112821985,10.91802421,177.86,177.81,10.91802421]
[1730112822785,16.54052421,177.86,177.81,10.91802421]
[1730112823686,16.54052421,177.86,177.76,0.6076]
[1730112823889,5.6225,177.86,177.82,10.91802421]
[1730112824469,30.0,177.85,177.82,10.91802421]
[1730112825189,30.0,177.85,177.83,10.91802421]
[1730112825392,30.0,177.85,177.84,10.91802421]
[1730112827196,30.0,177.85,177.83,10.91802421]
[1730112829301,30.0,177.85,177.82,10.91802421]
[1730112830774,30.0,177.85,177.77,23.776884]
[1730112831001,30.0,177.85,177.82,10.91802421]
[1730112832775,30.0,177.85,177.83,10.91802421]
[1730112838509,30.0,177.85,177.82,10.91802421]
[1730112838691,30.0,177.85,177.81,10.91802421]
[1730112839000,35.6227,177.85,177.81,10.91802421]
[1730112840583,10.91802421,177.84,177.73,0.8030399]
[1730112840784,10.91802421,177.84,177.74,23.902374]
[1730112841001,10.91802421,177.84,177.79,10.91802421]
[1730112841304,10.91802421,177.84,177.76,23.776884]
[1730112841494,10.91802421,177.84,177.79,10.91802421]
[1730112841691,16.54112421,177.84,177.79,16.54242421]
[1730112843001,5.6231,177.84,177.81,10.91802421]
[1730112843700,30.0,177.82,177.81,10.91802421]
[1730112845095,30.0,177.82,177.81,16.54192421]
[1730112849608,30.0,177.82,177.81,10.91802421]
[1730112853417,30.0,177.82,177.81,34.69490821]
[1730112853905,15.4623,177.89,177.81,45.61293242]
[1730112854110,15.4623,177.89,177.88,10.91802421]
[1730112855885,15.4623,177.89,177.87,10.91802421]
[1730112856123,45.4623,177.89,177.87,10.91802421]
[1730112856588,30.0,177.89,177.88,10.91802421]
[1730112857703,6.6412,177.92,177.88,10.91802421]
[1730112857909,6.6412,177.92,177.89,10.91802421]
[1730112861795,6.6412,177.92,177.82,23.776884]
[1730112861796,12.2618,177.92,177.82,23.776884]
[1730112861991,12.2618,177.92,177.88,10.91802421]
[1730112862192,30.0,177.9,177.88,10.91802421]
[1730112863796,30.0,177.9,177.82,23.776884]
[1730112864011,30.0,177.9,177.87,10.91802421]
[1730112866309,30.0,177.9,177.89,10.91802421]
[1730112867021,30.0,177.9,177.85,23.776884]
[1730112867198,30.0,177.9,177.89,10.91802421]
[1730112869107,6.0913,177.96,177.89,10.91802421]
[1730112869317,6.0913,177.96,177.94,10.91802421]
[1730112869621,30.0,177.95,177.94,10.91802421]
[1730112870216,30.0,177.95,177.93,10.91802421]
[1730112870817,35.6195,177.95,177.85,23.776884]
[1730112871002,35.6195,177.95,177.92,10.91802421]
[1730112871327,70.12549,177.94,177.9,10.91802421]
[1730112872025,30.0,177.93,177.9,10.91802421]
[1730112872712,30.0,177.93,177.91,10.91802421]
[1730112873009,30.0,177.93,177.92,10.91802421]
[1730112874123,81.7105,177.96,177.92,10.91802421]
[1730112874331,81.7105,177.96,177.93,10.91802421]
[1730112876822,5.74519,177.95,177.85,23.776884]
[1730112877126,30.0,177.93,177.92,10.91802421]
[1730112877318,30.0,177.93,177.91,10.91802421]
[1730112878630,30.0,177.93,177.92,10.91802421]
[1730112879205,30.0,177.93,177.91,10.91802421]
[1730112885126,30.0,177.93,177.84,43.67209684]
[1730112885435,35.6201,177.93,177.9,10.91802421]
[1730112886133,86.47469,177.92,177.82,23.776884]
[1730112886453,30.0,177.91,177.89,10.91802421]
[1730112886734,30.0,177.91,177.81,5.8097276]
[1730112886941,30.0,177.91,177.87,10.91802421]
[1730112887308,76.78099,177.9,177.81,5.8097276]
[1730112887523,76.78099,177.9,177.86,10.91802421]
[1730112888024,30.0,177.89,177.86,10.91802421]
[1730112888426,30.0,177.89,177.85,10.91802421]
[1730112888819,70.12549,177.88,177.78,5.81080668]
[1730112889024,70.12549,177.88,177.84,10.91802421]
[1730112889447,96.65501421,177.86,177.81,10.91802421]
[1730112889940,85.73699,177.86,177.82,10.91802421]
[1730112890124,85.73699,177.86,177.75,50.0943224]
[1730112890330,30.0,177.85,177.82,10.91802421]
[1730112890730,70.12549,177.84,177.75,50.0943224]
[1730112890926,70.12549,177.84,177.81,10.91802421]
[1730112891324,30.0,177.83,177.81,10.91802421]
[1730112891544,70.12549,177.84,177.81,10.91802421]
[1730112892832,70.12549,177.84,177.76,5.6255]
[1730112893032,70.12549,177.84,177.81,10.91802421]
[1730112893728,85.6115,177.86,177.82,10.91802421]
[1730112894055,85.6115,177.86,177.76,5.6255]
[1730112894056,0.12549,177.85,177.81,10.91802421]
[1730112894655,30.0,177.82,177.81,16.54162421]
[1730112894947,0.12549,177.85,177.81,16.54162421]
[1730112897245,96.52952421,177.86,177.81,16.54162421]
[1730112897438,85.6115,177.86,177.82,10.91802421]
[1730112897742,30.0,177.83,177.82,10.91802421]
[1730112900058,30.0,177.83,177.75,50.10695]
[1730112900357,10.91802421,177.85,177.81,10.91802421]
[1730112901754,10.91802421,177.85,177.75,50.10695]
[1730112901755,10.91802421,177.85,177.75,6.43485316]
[1730112901957,10.91802421,177.85,177.8,10.91802421]
[1730112902260,81.04351421,177.84,177.79,10.91802421]
[1730112903259,30.0,177.82,177.79,10.91802421]
[1730112904241,30.0,177.82,177.8,10.91802421]
[1730112904743,10.91802421,177.85,177.8,10.91802421]
[1730112905441,10.91802421,177.85,177.81,5.6239]
[1730112906766,10.91802421,177.85,177.8,10.91802421]
[1730112907861,5.6228,177.85,177.81,10.91802421]
[1730112908454,16.54082421,177.85,177.8,10.91802421]
[1730112908777,16.54082421,177.85,177.75,50.10695]
[1730112908778,5.6242,177.8,177.75,5.82725316]
[1730112908963,10.91802421,177.8,177.75,10.91802421]
[1730112909865,30.0,177.79,177.73,0.6030399]
[1730112910066,30.0,177.79,177.75,10.91802421]
[1730112911849,10.91802421,177.77,177.73,0.6030399]
[1730112912360,30.0,177.76,177.73,0.6030399]
[1730112912957,30.0,177.76,177.73,6.2293399]
[1730112913371,30.0,177.76,177.73,17.14736411]
[1730112914267,100.0,177.76,177.73,6.2293399]
[1730112915064,0.12549,177.75,177.73,0.6030399]
[1730112915362,30.12549,177.75,177.73,0.6030399]
[1730112915768,70.25098,177.74,177.73,0.6030399]
[1730112916651,97.42320421,177.74,177.73,0.6030399]
[1730112918555,86.2542,177.74,177.73,0.6030399]
[1730112918759,16.2542,177.74,177.73,0.6030399]
[1730112918967,16.2542,177.74,177.73,6.2295399]
[1730112919164,16.2542,177.74,177.73,0.6030399]
[1730112919165,86.37969,177.74,177.73,0.6030399]
[1730112919749,116.37969,177.74,177.73,0.6030399]
[1730112925255,127.54869421,177.74,177.73,0.6030399]
[1730112926074,133.17479421,177.74,177.73,0.6030399]
[1730112928376,156.95167821,177.74,177.73,0.6030399]
[1730112932285,116.2542,177.74,177.73,0.6030399]
[1730112932855,30.0,177.74,177.73,6.2295399]
[1730112933178,30.0,177.74,177.73,17.14756411]
[1730112933963,30.0,177.74,177.73,0.6030399]
[1730112934258,111.04351421,177.74,177.73,0.6030399]
[1730112934662,70.12549,177.74,177.73,0.6030399]
[1730112935782,70.37647,177.74,177.73,0.6030399]
[1730112936282,81.29449421,177.74,177.73,0.6030399]
[1730112936461,70.37647,177.74,177.73,0.6030399]
[1730112936797,70.0,177.76,177.73,17.14736411]
[1730112937081,0.12549,177.75,177.74,10.91802421]
[1730112937283,0.12549,177.75,177.73,6.2293399]
[1730112937777,0.12549,177.75,177.73,0.6030399]
[1730112938172,30.12549,177.75,177.73,0.6030399]
[1730112939061,30.12549,177.75,177.73,17.14756411]
[1730112939461,30.12549,177.75,177.73,6.2295399]
[1730112940277,30.12549,177.75,177.73,0.6030399]
[1730112941160,70.12549,177.74,177.73,0.6030399]
[1730112941364,100.12549,177.74,177.73,0.6030399]
[1730112943059,105.75159,177.74,177.73,0.6030399]
[1730112943285,116.92059421,177.74,177.73,0.6030399]
[1730112943998,86.92059421,177.74,177.73,0.6030399]
[1730112946971,116.92059421,177.74,177.73,0.6030399]
[1730112947169,140.69747821,177.74,177.73,0.6030399]
[1730112948463,70.0,177.71,177.68,15.58910641]
[1730112948987,0.12549,177.7,177.66,10.91802421]
[1730112949168,11.04351421,177.7,177.65,10.91802421]
[1730112949687,0.12549,177.7,177.66,10.91802421]
[1730112950066,0.12549,177.7,177.66,10.41802421]
[1730112950704,0.12549,177.7,177.67,5.6284]
[1730112951305,70.0,177.68,177.64,10.91802421]
[1730112952304,70.0,177.68,177.65,5.629]
[1730112952614,30.0,177.67,177.65,5.629]
[1730112953179,40.91802421,177.67,177.6,5.6306]
[1730112953500,30.0,177.67,177.63,10.91802421]
[1730112953701,70.12549,177.66,177.63,10.91802421]
[1730112953908,70.12549,177.66,177.62,10.91802421]
[1730112954086,70.12549,177.66,177.61,10.91802421]
[1730112954288,70.0,177.66,177.62,5.6299]
[1730112954686,0.12549,177.65,177.62,5.6299]
[1730112955302,30.12549,177.65,177.62,5.6299]
[1730112956096,70.0,177.64,177.62,5.6299]
[1730112956487,30.12549,177.65,177.62,5.6299]
[1730112957596,0.12549,177.65,177.6,10.91802421]
[1730112958112,70.0,177.64,177.57,0.6076]
[1730112958307,70.0,177.64,177.59,10.91802421]
[1730112958483,11.04351421,177.65,177.58,5.6312]
[1730112958484,70.0,177.61,177.58,5.6312]
[1730112959884,0.12549,177.58,177.55,6.2351399]
[1730112960086,70.0,177.58,177.55,6.2352399]
[1730112960487,70.0,177.62,177.55,6.2352399]
[1730112960699,80.91802421,177.62,177.57,10.91802421]
[1730112960991,30.0,177.58,177.57,10.91802421]
[1730112961187,0.12549,177.61,177.57,10.91802421]
[1730112961502,70.0,177.64,177.59,10.91802421]
[1730112961808,70.0,177.64,177.61,5.6303]
[1730112962009,80.91802421,177.64,177.61,5.6303]
[1730112963308,70.12549,177.62,177.58,10.91802421]
[1730112964326,70.12549,177.62,177.59,5.6309]
[1730112965611,70.12549,177.62,177.59,10.91802421]
[1730112966494,22.198,177.65,177.61,10.91802421]
[1730112966900,0.12549,177.64,177.61,10.91802421]
[1730112967616,70.12549,177.64,177.62,5.6299]
[1730112970114,70.12549,177.64,177.6,10.91802421]
[1730112971216,81.04351421,177.64,177.59,10.91802421]
[1730112971414,10.91802421,177.63,177.58,10.91802421]
[1730112971801,81.04351421,177.64,177.59,10.91802421]
[1730112972393,81.04351421,177.64,177.6,5.6306]
[1730112973710,10.91802421,177.63,177.6,5.6306]
[1730112974800,70.12549,177.62,177.56,5.6318]
[1730112975000,81.04351421,177.62,177.57,10.91802421]
[1730112975208,80.91802421,177.6,177.56,5.6318]
[1730112976226,80.91802421,177.6,177.55,11.52106411]
[1730112976403,0.12549,177.59,177.55,0.6030399]
[1730112976600,0.12549,177.59,177.55,11.52106411]
[1730112977116,0.12549,177.59,177.55,0.6030399]
[1730112977296,11.04351421,177.59,177.55,0.6030399]
[1730112978306,0.12549,177.59,177.56,5.6318]
[1730112978904,70.0,177.6,177.56,16.54982421]
[1730112979110,80.91802421,177.62,177.57,10.91802421]
[1730112979728,0.12549,177.61,177.57,10.91802421]
[1730112980017,11.04351421,177.61,177.56,16.54982421]
[1730112981396,70.0,177.62,177.56,16.54982421]
[1730112981596,80.91802421,177.62,177.57,10.91802421]
[1730112982119,10.91802421,177.61,177.56,16.54982421]
[1730112982822,10.91802421,177.61,177.56,5.6318]
[1730112983027,10.91802421,177.61,177.56,16.54982421]
[1730112984105,10.91802421,177.61,177.56,5.6318]
[1730112984305,10.91802421,177.61,177.56,16.54982421]
[1730112985824,75.6294,177.64,177.58,10.91802421]
[1730112986022,75.6294,177.64,177.56,5.6318]
[1730112986023,70.0,177.64,177.59,10.91802421]
[1730112986329,80.91802421,177.64,177.6,5.6306]
[1730112986542,70.0,177.64,177.6,16.54862421]
[1730112986818,80.91802421,177.64,177.6,5.6306]
[1730112987418,10.91802421,177.63,177.6,5.6306]
[1730112987602,70.12549,177.6,177.55,0.6030399]
[1730112987802,10.91802421,177.58,177.55,6.2351399]
[1730112988006,10.91802421,177.58,177.55,0.6030399]
[1730112988212,80.91802421,177.58,177.55,6.2351399]
[1730112988512,70.0,177.58,177.55,6.2351399]
[1730112990127,0.12549,177.57,177.55,6.2351399]
[1730112990433,11.04351421,177.57,177.55,6.2351399]
[1730112992230,11.04351421,177.57,177.55,0.6030399]
[1730112993113,11.04351421,177.57,177.55,6.2351399]
[1730112993515,22.4023,177.59,177.55,6.2351399]
[1730112993813,33.32032421,177.59,177.55,6.2351399]
[1730112995914,10.91802421,177.58,177.55,6.2351399]
[1730112996316,70.12549,177.57,177.55,6.2351399]
[1730112997628,70.12549,177.57,177.55,0.6030399]
[1730112998436,81.04351421,177.57,177.55,0.6030399]
[1730112998825,10.91802421,177.56,177.55,0.6030399]
[1730112999018,11.04351421,177.56,177.55,0.6030399]
[1730113000524,11.29449421,177.56,177.55,0.6030399]
[1730113005340,40.70317821,177.56,177.55,0.6030399]
[1730113007937,60.70317821,177.56,177.55,0.6030399]
[1730113010041,83.73347821,177.56,177.55,0.6030399]
[1730113015424,83.83347821,177.56,177.55,0.6030399]
[1730113016955,70.0,177.49,177.45,10.91802421]
[1730113017251,70.0,177.49,177.46,5.635]
[1730113019351,0.12549,177.48,177.46,5.635]
[1730113021831,30.12549,177.48,177.46,5.635]
[1730113022354,70.0,177.55,177.47,54.59012105]
[1730113022530,70.0,177.59,177.54,10.91802421]
[1730113022736,70.0,177.59,177.57,10.91802421]
[1730113022937,30.0,177.58,177.57,10.91802421]
[1730113023352,70.0,177.57,177.48,43.67209684]
[1730113023533,70.0,177.57,177.53,10.91802421]
[1730113024042,0.12549,177.56,177.53,10.91802421]
[1730113024246,30.12549,177.56,177.53,10.91802421]
[1730113024447,0.12549,177.54,177.52,10.91802421]
[1730113024649,70.0,177.55,177.52,10.91802421]
[1730113025038,70.0,177.55,177.53,10.91802421]
[1730113025358,0.12549,177.56,177.53,10.91802421]
[1730113025735,70.0,177.55,177.52,10.91802421]
[1730113026443,70.0,177.55,177.53,5.6328]
[1730113027561,30.0,177.54,177.53,5.6328]
[1730113028352,30.0,177.54,177.52,10.91802421]
[1730113030163,0.12549,177.54,177.52,16.55082421]
[1730113030463,0.12549,177.54,177.52,5.6328]
[1730113032161,70.0,177.53,177.44,1.1964]
[1730113032344,70.0,177.53,177.5,10.91802421]
[1730113033256,30.0,177.52,177.5,10.91802421]
[1730113033565,30.0,177.52,177.45,5.6353]
[1730113033773,30.0,177.52,177.51,5.6334]
[1730113034768,30.0,177.52,177.5,10.91802421]
[1730113037073,30.0,177.52,177.44,1.1964]
[1730113037074,30.0,177.52,177.51,5.6334]
[1730113039565,30.0,177.52,177.51,10.91802421]
[1730113040457,70.0,177.55,177.51,10.91802421]
[1730113040659,70.0,177.55,177.52,10.91802421]
[1730113041276,70.0,177.55,177.51,10.91802421]
[1730113041576,30.0,177.53,177.52,5.6331]
[1730113041953,0.12549,177.54,177.52,5.6331]
[1730113042867,0.12549,177.54,177.51,10.91802421]
[1730113043456,0.25098,177.54,177.51,10.91802421]
[1730113045081,0.25098,177.54,177.51,16.55122421]
[1730113045780,0.25098,177.54,177.52,10.91802421]
[1730113045962,30.0,177.53,177.52,10.91802421]
[1730113047467,30.0,177.53,177.52,16.55112421]
[1730113048453,75.6309,177.59,177.52,16.55112421]
[1730113048659,70.0,177.57,177.54,10.91802421]
[1730113048849,30.0,177.55,177.54,10.91802421]
[1730113049482,70.0,177.59,177.54,10.91802421]
[1730113049653,0.12549,177.58,177.56,10.91802421]
[1730113049851,30.0,177.57,177.56,10.91802421]
[1730113050470,30.0,177.57,177.55,10.91802421]
[1730113051479,100.0,177.57,177.5,5.6338]
[1730113051679,100.0,177.57,177.54,10.91802421]
[1730113051880,70.0,177.57,177.54,10.91802421]
[1730113052062,0.25098,177.56,177.52,10.91802421]
[1730113052374,70.0,177.55,177.51,10.91802421]
[1730113052776,70.0,177.55,177.52,5.6331]
[1730113053163,70.0,177.53,177.46,5.635]
[1730113053368,0.25098,177.54,177.52,10.91802421]
[1730113054163,0.25098,177.54,177.46,5.635]
[1730113054484,0.25098,177.54,177.51,10.91802421]
[1730113054788,70.0,177.53,177.51,10.91802421]
[1730113054985,70.0,177.53,177.49,10.91802421]
[1730113055164,0.25098,177.52,177.45,5.6353]
[1730113055481,0.25098,177.52,177.48,10.91802421]
[1730113055659,30.25098,177.52,177.48,10.91802421]
[1730113055858,70.0,177.51,177.45,5.6353]
[1730113056184,70.0,177.49,177.45,5.6353]
[1730113056486,70.0,177.49,177.45,16.55332421]
[1730113056772,30.0,177.48,177.45,10.41802421]
[1730113057564,70.0,177.51,177.47,10.91802421]
[1730113057963,70.0,177.51,177.48,10.91802421]
[1730113058363,70.0,177.51,177.41,23.776884]
[1730113058563,70.0,177.51,177.48,10.91802421]
[1730113058768,86.55162421,177.51,177.41,5.6366]
[1730113058977,0.25098,177.48,177.41,5.6366]
[1730113059172,0.25098,177.48,177.45,10.91802421]
[1730113059579,70.12549,177.46,177.41,5.6366]
[1730113059788,70.12549,177.46,177.43,10.91802421]
[1730113059976,0.12549,177.45,177.38,1.2106399]
[1730113060185,11.16900421,177.45,177.4,10.91802421]
[1730113060363,70.0,177.44,177.39,5.6372]
[1730113060563,70.0,177.44,177.4,10.91802421]
[1730113060564,30.25098,177.43,177.4,10.91802421]
[1730113060759,30.25098,177.43,177.41,10.91802421]
[1730113061189,70.0,177.4,177.38,0.6030399]
[1730113061374,0.37647,177.39,177.38,0.6030399]
[1730113061574,30.0,177.39,177.38,11.52106411]
[1730113062288,30.0,177.39,177.38,0.6030399]
[1730113062495,30.0,177.39,177.38,11.52106411]
[1730113062668,30.0,177.39,177.38,0.6030399]
[1730113062868,30.0,177.39,177.38,11.52106411]
[1730113063182,30.0,177.39,177.38,17.15866411]
[1730113064476,30.0,177.39,177.38,0.6030399]
[1730113064477,30.12549,177.39,177.38,0.6030399]
[1730113064680,100.25098,177.39,177.38,0.6030399]
[1730113064874,70.37647,177.39,177.38,0.6030399]
[1730113065277,70.0,177.41,177.38,17.78679477]
[1730113065479,70.0,177.41,177.4,17.18375487]
[1730113065685,70.0,177.41,177.39,17.18375487]
[1730113065881,30.0,177.4,177.39,17.18375487]
[1730113066281,30.0,177.4,177.38,17.78679477]
[1730113066490,0.25098,177.39,177.38,0.6030399]
[1730113066786,70.25098,177.39,177.38,0.6030399]
[1730113066993,100.25098,177.39,177.38,17.78679477]
[1730113067987,100.25098,177.39,177.38,0.6030399]
[1730113068297,183.56370887,177.39,177.38,0.6030399]
[1730113068795,166.379954,177.39,177.38,0.6030399]
[1730113069305,166.379954,177.39,177.25,1.1964]
[1730113069306,70.0,177.33,177.22,0.1]
[1730113069590,70.25098,177.33,177.32,17.18375487]
[1730113069781,70.37647,177.33,177.32,17.18375487]
[1730113069980,0.25098,177.32,177.21,0.7076]
[1730113070175,0.37647,177.32,177.31,17.18375487]
[1730113071179,30.37647,177.32,177.31,17.18375487]
[1730113071395,70.0,177.31,177.28,5.6407]
[1730113071697,70.25098,177.31,177.3,17.18375487]
[1730113072086,70.37647,177.31,177.3,17.18375487]
[1730113073199,70.0,177.33,177.3,17.18375487]
[1730113073494,6.0972,177.34,177.32,17.18375487]
[1730113073697,70.0,177.37,177.33,17.18375487]
[1730113073993,70.0,177.37,177.36,17.18375487]
[1730113074177,70.0,177.37,177.36,17.09196647]
[1730113074578,70.12549,177.37,177.36,17.09196647]
[1730113074996,70.0,177.39,177.36,17.09196647]
[1730113075178,70.25098,177.39,177.38,17.18375487]
[1730113075505,100.37647,177.39,177.38,17.18375487]
[1730113075704,100.0,177.39,177.38,17.18375487]
[1730113075996,100.12549,177.39,177.38,17.18375487]
[1730113076299,100.12549,177.39,177.36,5.6382]
[1730113076502,30.0,177.37,177.36,5.6382]
[1730113076880,30.0,177.37,177.31,5.6398]
[1730113078085,30.0,177.37,177.36,17.18375487]
[1730113079197,100.12549,177.37,177.31,5.6398]
[1730113079509,100.25098,177.37,177.36,17.18375487]
[1730113080194,30.0,177.37,177.36,22.82195487]
[1730113081284,0.12549,177.41,177.36,22.82195487]
[1730113081484,0.12549,177.41,177.4,17.18375487]
[1730113082574,0.25098,177.41,177.4,17.18375487]
[1730113083087,0.25098,177.41,177.4,22.82065487]
[1730113083390,0.25098,177.41,177.4,17.18375487]
[1730113084008,70.0,177.42,177.4,22.82065487]
[1730113084206,0.12549,177.42,177.41,17.18375487]
[1730113084411,0.25098,177.42,177.41,17.18375487]
[1730113084597,92.5933,177.44,177.41,17.18375487]
[1730113084919,22.5933,177.44,177.43,17.18375487]
[1730113085206,70.0,177.46,177.43,17.18375487]
[1730113085508,70.12549,177.46,177.45,17.18375487]
[1730113086202,70.37647,177.46,177.45,17.18375487]
[1730113087784,99.788354,177.46,177.45,17.18375487]
[1730113088001,70.0,177.42,177.31,0.1]
[1730113088309,70.25098,177.42,177.41,17.18375487]
[1730113089305,70.37647,177.42,177.41,17.18375487]
[1730113089994,70.0,177.37,177.31,5.6398]
[1730113090184,70.0,177.37,177.36,17.18375487]
[1730113090383,70.37647,177.37,177.36,17.18375487]
[1730113091787,76.01437,177.37,177.36,17.18375487]
[1730113092190,70.37647,177.37,177.36,17.18375487]
[1730113093406,70.25098,177.37,177.36,17.18375487]
[1730113093787,23.0015,177.42,177.36,22.82195487]
[1730113093788,70.0,177.39,177.36,22.82195487]
[1730113094007,70.12549,177.39,177.38,17.18375487]
[1730113095491,70.25098,177.39,177.38,17.18375487]
[1730113099501,70.0,177.41,177.38,17.18375487]
[1730113099707,70.0,177.41,177.4,17.18375487]
[1730113100214,70.12549,177.41,177.4,17.18375487]
[1730113101004,70.25098,177.41,177.4,17.18375487]
[1730113102202,70.37647,177.41,177.4,17.18375487]
[1730113102515,76.01307,177.41,177.4,17.18375487]
[1730113102716,70.0,177.37,177.27,0.1]
[1730113102914,70.25098,177.37,177.36,17.18375487]
[1730113103994,70.37647,177.37,177.36,17.18375487]
[1730113104408,70.0,177.34,177.26,20.1]
[1730113104616,70.12549,177.34,177.33,17.18375487]
[1730113104819,70.12549,177.34,177.26,5.6414]
[1730113105020,70.25098,177.34,177.33,17.18375487]
[1730113105320,70.37647,177.34,177.33,17.18375487]
[1730113106105,76.01527,177.34,177.33,17.18375487]
[1730113106423,70.0,177.32,177.29,5.6401]
[1730113106721,70.25098,177.32,177.31,17.18375487]
[1730113109118,70.25098,177.32,177.3,5.6401]
[1730113109302,70.25098,177.32,177.31,17.18375487]
[1730113109503,70.25098,177.32,177.22,49.519584]
[1730113109818,70.37647,177.32,177.31,17.18375487]
[1730113110020,0.25098,177.31,177.22,5.6427]
[1730113110207,0.25098,177.31,177.3,17.18375487]
[1730113110599,0.25098,177.31,177.3,22.82385487]
[1730113110914,70.0,177.34,177.3,40.00760974]
[1730113111119,70.0,177.34,177.33,17.18375487]
[1730113111311,70.12549,177.34,177.33,17.18375487]
[1730113112220,70.25098,177.34,177.33,17.18375487]
[1730113112397,0.25098,177.33,177.23,0.1]
[1730113112601,0.25098,177.33,177.32,17.18375487]
[1730113113515,70.0,177.32,177.22,43.876884]
[1730113113728,70.25098,177.32,177.31,17.18375487]
[1730113115448,70.25098,177.32,177.3,5.6401]
[1730113115653,70.25098,177.32,177.31,17.18375487]
[1730113116345,70.37647,177.32,177.31,17.18375487]
[1730113118552,70.37647,177.32,177.31,11.00928823]
[1730113119358,70.25098,177.3,177.29,5.6404]
[1730113119551,70.12549,177.32,177.29,16.64968823]
[1730113119731,0.12549,177.31,177.29,16.64968823]
[1730113119930,0.25098,177.31,177.3,11.00928823]
[1730113120340,70.0,177.34,177.3,11.00928823]
[1730113120653,70.0,177.34,177.33,11.00928823]
[1730113120837,0.12549,177.32,177.29,5.6404]
[1730113121346,70.0,177.31,177.29,5.6404]
[1730113121541,70.12549,177.31,177.3,11.00928823]
[1730113121838,0.25098,177.3,177.22,0.1]
[1730113122047,0.25098,177.3,177.29,11.00928823]
[1730113124631,0.25098,177.3,177.29,16.64968823]
[1730113125047,0.12549,177.3,177.29,16.64968823]
[1730113125252,70.0,177.33,177.29,60.68684115]
[1730113125446,70.12549,177.33,177.29,5.6404]
[1730113125647,70.0,177.31,177.29,5.6404]
[1730113125845,70.12549,177.33,177.29,5.6404]
[1730113126040,70.12549,177.33,177.23,5.7423]
[1730113126240,70.0,177.31,177.23,5.7423]
[1730113126571,70.25098,177.34,177.24,0.1]
[1730113126742,70.25098,177.34,177.33,11.00928823]
[1730113127142,70.37647,177.34,177.33,11.00928823]
[1730113128965,94.153354,177.34,177.33,11.00928823]
[1730113129263,0.25098,177.31,177.23,5.6423]
[1730113129469,0.25098,177.31,177.3,11.00928823]
[1730113131452,0.25098,177.31,177.29,5.6401]
[1730113131661,0.25098,177.31,177.3,11.00928823]
[1730113132271,70.0,177.3,177.21,50.4371095]
[1730113132443,70.25098,177.3,177.29,11.00928823]